bitfinex/quotes_ETHUSD_20241203
["timestamp","ask_amount","ask_price","bid_price","bid_amount"]
[1733242330102,0.25864044,3592.5,3591.7,1.6058]
[1733242330309,2.78358,3592.5,3591.7,1.6058]
[1733242330504,0.25874623,3592.4,3591.7,1.6058]
[1733242330702,0.25874623,3592.4,3591.1,3.21653183]
[1733242330703,0.2587581,3592.3,3591.1,1.6058]
[1733242330886,2.78399,3592.0,3591.2,0.19722977]
[1733242331096,0.03950362,3592.4,3591.2,0.19722977]
[1733242331296,0.03954321,3591.9,3591.2,0.19722977]
[1733242331498,0.41401297,3592.5,3591.2,0.19722977]
[1733242331698,0.0395121,3591.8,3591.2,0.19722977]
[1733242331994,0.04023598,3591.7,3591.3,0.18030298]
[1733242332224,0.25875852,3592.3,3591.3,0.18030298]
[1733242332225,3.04263852,3592.1,3591.3,0.18030298]
[1733242332431,0.25875852,3592.0,3591.3,0.18030298]
[1733242332642,0.25875852,3591.9,3591.3,0.18030298]
[1733242332823,0.03949756,3592.0,3591.3,0.18030298]
[1733242333125,0.03943536,3591.8,3591.3,0.18030298]
[1733242333289,0.03946647,3591.9,3591.1,1.6058]
[1733242333490,0.03940426,3591.7,3590.3,1.5281]
[1733242333693,2.78442,3591.5,3590.3,4.31337]
[1733242333894,0.2587591,3591.4,3590.3,4.31337]
[1733242334127,0.03918042,3591.4,3590.4,2.78518]
[1733242334331,0.03918042,3591.4,3590.5,0.431328]
[1733242334503,0.03918042,3591.4,3590.3,1.5281]
[1733242334504,2.78444,3591.4,3590.3,1.89427145]
[1733242334838,0.03958847,3591.3,3590.3,1.89427145]
[1733242335039,0.03958847,3591.3,3590.3,1.5281]
[1733242335245,2.78481,3591.0,3590.3,1.5281]
[1733242335395,2.7849,3590.8,3590.3,1.5281]
[1733242335593,0.03899909,3590.7,3589.9,1.5535]
[1733242336103,0.03899909,3590.7,3589.9,1.58135268]
[1733242336307,2.78483,3590.9,3589.9,1.5535]
[1733242336518,0.0386799,3590.6,3589.9,1.5535]
[1733242336698,0.0386799,3590.6,3589.9,4.33908]
[1733242336895,5.77769576,3593.8,3589.5,1.6474]
[1733242336896,0.67230156,3591.3,3589.5,1.6474]
[1733242337100,3.21653183,3590.8,3589.5,1.6474]
[1733242337297,3.21653183,3590.8,3589.6,2.78575]
[1733242337298,0.25859936,3590.7,3589.6,2.78575]
[1733242337497,0.29740593,3590.7,3589.6,2.7858]
[1733242337723,0.29740593,3590.7,3589.8,1.5267]
[1733242337997,3.21653183,3592.0,3589.8,1.5267]
[1733242337998,0.41375898,3591.6,3590.3,2.78524]
[1733242338194,3.45662176,3591.5,3590.5,1.5267]
[1733242338414,0.67226176,3591.4,3590.5,1.5267]
[1733242338591,0.25850278,3591.3,3590.5,1.5267]
[1733242338798,0.25850278,3591.2,3590.6,2.81287925]
[1733242339020,0.25850278,3591.1,3590.7,0.43395792]
[1733242339347,0.41375898,3591.6,3590.7,3.24676544]
[1733242339507,0.67237855,3591.5,3590.7,3.21891792]
[1733242339711,0.25861957,3591.4,3590.7,0.43395792]
[1733242339925,0.25861957,3591.3,3590.7,0.43395792]
[1733242340096,0.25861957,3591.2,3590.8,0.47456979]
[1733242340296,3.21653183,3592.4,3590.8,0.47456979]
[1733242340499,0.03892051,3591.1,3590.6,0.02784683]
[1733242340737,2.78458,3591.2,3590.5,1.5267]
[1733242340922,0.25868919,3591.1,3590.5,1.5267]
[1733242341122,0.25868919,3591.0,3590.5,1.5267]
[1733242341337,0.25879969,3590.9,3590.5,1.5267]
[1733242341537,0.03880192,3590.9,3590.5,1.5267]
[1733242341736,0.32115011,3590.9,3590.0,2.78549]
[1733242341939,0.41406329,3591.5,3590.0,2.78549]
[1733242341940,2.78474,3591.0,3590.0,2.78549]
[1733242342168,0.03877809,3590.8,3589.9,1.5069]
[1733242342305,0.03876545,3590.9,3589.9,1.5069]
[1733242342668,2.78513,3590.5,3589.5,4.30259]
[1733242343145,0.03774903,3590.4,3589.5,4.732849]
[1733242343441,2.78513,3590.5,3589.5,4.732849]
[1733242343937,3.08279513,3590.4,3589.5,1.5167]
[1733242344243,2.78544,3590.1,3589.2,1.6339]
[1733242344450,0.0386172,3590.4,3589.2,1.6339]
[1733242344604,0.03794162,3590.0,3589.2,1.6339]
[1733242344839,2.78498,3590.7,3589.7,1.6341]
[1733242345148,2.78527,3590.4,3589.7,1.6341]
[1733242345363,0.25904116,3590.3,3589.7,1.6341]
[1733242345542,0.25904116,3590.2,3589.7,1.6341]
[1733242345898,0.278498,3590.6,3589.1,1.5826]
[1733242346035,0.67365738,3590.5,3589.3,2.78603]
[1733242346391,3.45888697,3590.4,3589.3,2.78603]
[1733242346549,3.04440899,3590.3,3589.1,4.3688]
[1733242346737,3.04446899,3590.2,3589.1,4.3688]
[1733242346937,0.25916763,3590.1,3589.1,4.3688]
[1733242347239,0.25922318,3590.0,3589.1,2.05627796]
[1733242347465,2.78537,3590.2,3589.1,4.3688]
[1733242347678,0.03747353,3589.9,3589.1,4.3688]
[1733242347888,0.03753281,3590.1,3589.2,2.78612]
[1733242348189,0.03755406,3589.8,3589.2,2.78612]
[1733242348527,0.03742241,3589.7,3589.1,4.36881]
[1733242348665,0.03742241,3589.7,3589.1,4.805691]
[1733242348839,2.78536,3590.2,3589.1,4.805691]
[1733242349145,0.25928229,3590.1,3589.1,4.805691]
[1733242349353,0.25928229,3590.0,3589.2,2.78611]
[1733242349562,0.25928229,3589.9,3589.3,2.78604]
[1733242349782,2.7849,3590.8,3589.5,1.6277]
[1733242349987,0.88185794,3590.7,3589.5,4.41359]
[1733242350195,0.88184004,3590.6,3589.7,2.78572]
[1733242350479,2.78492,3590.8,3589.8,2.78566]
[1733242350480,0.88182562,3590.5,3589.8,2.78566]
[1733242350777,3.0,3591.5,3589.8,2.78566]
[1733242350778,0.6743569,3590.4,3589.9,2.78554]
[1733242351081,0.6743569,3590.3,3589.9,2.78554]
[1733242351235,0.25937466,3590.2,3590.0,0.02785342]
[1733242351441,3.25054078,3592.3,3590.2,1.575]
[1733242351688,5.99991183,3592.8,3590.2,1.575]
[1733242351689,2.78406,3591.9,3591.0,1.5691]
[1733242351976,1.46627345,3592.2,3590.3,0.27697913]
[1733242351977,2.78435,3591.5,3590.3,0.27697913]
[1733242352178,0.03824356,3591.8,3590.4,1.5691]
[1733242352427,2.7845,3591.4,3590.4,1.5691]
[1733242352624,0.46725468,3591.3,3590.4,1.5691]
[1733242352783,0.50534997,3591.2,3590.4,1.5691]
[1733242352991,3.25195966,3591.1,3590.4,1.5691]
[1733242353281,0.50561463,3591.0,3590.0,1.6288]
[1733242353484,0.46746086,3590.9,3590.0,1.6288]
[1733242353727,0.46746086,3590.8,3590.0,1.6288]
[1733242353881,0.46746086,3590.7,3590.0,1.6288]
[1733242354087,0.46746086,3590.6,3590.0,4.41431]
[1733242354406,0.46755883,3590.5,3590.0,1.6288]
[1733242354609,0.2599648,3591.3,3590.0,1.6288]
[1733242354910,1.07071467,3591.2,3590.0,1.6288]
[1733242355110,0.4679242,3591.1,3590.1,2.78542]
[1733242355283,0.4679242,3591.0,3590.1,2.78542]
[1733242355636,3.2527742,3590.9,3590.0,1.6288]
[1733242355785,0.4679242,3590.8,3590.0,1.6288]
[1733242355981,0.50609118,3590.7,3590.0,1.6288]
[1733242356205,0.4679242,3590.6,3590.0,1.6288]
[1733242356401,0.03807208,3590.5,3590.0,1.6288]
[1733242356603,2.78468,3591.1,3590.0,4.41427]
[1733242356818,1.0447999,3591.0,3590.1,2.78541]
[1733242357031,0.46806637,3590.9,3590.2,2.78532]
[1733242357362,0.46806637,3590.8,3590.2,0.02785215]
[1733242357590,0.46806808,3591.6,3590.8,2.78488]
[1733242357841,0.46806808,3591.6,3589.8,6.00213183]
[1733242357842,0.7656664,3591.5,3589.9,1.5595]
[1733242358040,2.78454,3591.3,3589.9,1.5595]
[1733242358211,3.25267034,3591.2,3590.1,2.78537]
[1733242358411,0.5053488,3591.1,3589.9,1.5595]
[1733242358632,0.46809034,3591.0,3589.9,0.02785028]
[1733242358816,0.297953,3590.9,3590.4,2.78519]
[1733242359009,0.26011386,3591.3,3590.4,2.78519]
[1733242359209,0.50622575,3591.2,3590.4,2.78519]
[1733242359401,0.46817962,3591.1,3590.4,2.78519]
[1733242359625,0.46817962,3591.0,3590.4,2.78519]
[1733242359823,2.78416,3591.8,3590.0,1.89950081]
[1733242359824,0.26010015,3590.9,3590.2,2.78533]
[1733242360045,0.29825237,3590.8,3590.1,2.78539]
[1733242360232,0.03800615,3590.8,3590.2,0.46848908]
[1733242360567,0.26042297,3591.1,3590.2,3.25383908]
[1733242360723,0.03797503,3590.7,3590.2,3.25383908]
[1733242360925,3.04509635,3591.1,3590.2,0.46848908]
[1733242361231,0.72919447,3591.0,3590.0,1.89950081]
[1733242361435,0.76723748,3590.9,3590.3,2.78528]
[1733242361636,0.46876812,3590.8,3590.4,2.78516]
[1733242361826,0.26048514,3591.3,3590.4,2.78516]
[1733242362021,0.76737801,3591.2,3590.4,2.78516]
[1733242362222,0.46888187,3591.1,3590.4,2.78516]
[1733242362422,0.50691956,3591.0,3590.4,2.78516]
[1733242362648,0.46888187,3590.9,3590.6,2.78503]
[1733242362951,0.03803769,3591.0,3590.8,2.78489]
[1733242363132,2.78431,3591.6,3590.6,2.78501]
[1733242363346,2.78449,3591.4,3590.5,1.6118]
[1733242363547,2.78483,3590.9,3589.8,2.7856]
[1733242363862,0.46913301,3590.8,3589.7,1.5231]
[1733242364161,2.78439,3591.5,3589.7,1.5231]
[1733242364162,0.46913301,3590.7,3590.1,2.78539]
[1733242364322,0.46913301,3590.6,3589.7,4.3088]
[1733242364523,0.46913301,3590.5,3589.8,2.78566]
[1733242364833,0.46913301,3590.4,3589.7,1.5231]
[1733242365033,2.78461,3591.2,3589.7,1.5231]
[1733242365361,2.78493,3590.8,3589.7,4.30884]
[1733242365667,0.72992507,3590.7,3589.7,4.30884]
[1733242365966,3.51504833,3590.6,3589.7,1.5231]
[1733242366167,0.72993833,3590.5,3589.7,1.5231]
[1733242366368,0.72993833,3590.4,3589.8,2.78564]
[1733242366580,0.39365792,3590.5,3589.7,1.5231]
[1733242366581,0.46924369,3590.3,3589.7,1.5231]
[1733242366888,0.20856043,3590.2,3589.7,1.5231]
[1733242367025,0.03681555,3590.3,3589.7,1.5231]
[1733242367226,0.20856315,3590.2,3589.7,1.5231]
[1733242367484,0.03670667,3590.1,3589.7,4.3366745]
[1733242367685,0.03670667,3590.1,3589.7,1.5231]
[1733242367921,3.04520485,3591.3,3589.7,1.67541]
[1733242368080,0.72994953,3591.2,3589.7,1.55095448]
[1733242368285,0.72994953,3591.1,3589.7,1.55095448]
[1733242368638,0.72994953,3591.0,3589.9,2.78559]
[1733242368923,0.46925468,3590.9,3590.3,2.78527]
[1733242369131,0.03665435,3591.0,3589.8,2.78567]
[1733242369310,0.46922409,3590.9,3590.1,2.7854]
[1733242369625,0.20853825,3590.8,3590.1,2.78539]
[1733242369826,0.20853825,3590.8,3589.9,0.430877]
[1733242369827,0.24473878,3590.7,3590.5,2.78512]
[1733242370028,2.7844,3591.5,3590.5,4.42052]
[1733242370029,0.85502967,3591.4,3590.5,4.42052]
[1733242370323,1.09955725,3591.3,3590.7,2.78497]
[1733242370538,0.46921323,3591.2,3590.7,2.78497]
[1733242370821,0.2085381,3591.1,3590.5,1.6354]
[1733242371007,0.0366006,3591.1,3590.8,2.78488]
[1733242371217,0.26066682,3591.4,3590.5,4.58401]
[1733242371422,0.46911753,3591.9,3590.6,0.02784754]
[1733242371624,0.72973979,3591.8,3590.5,4.58401]
[1733242371929,0.76671579,3591.7,3590.9,2.78479]
[1733242372147,0.76671579,3591.7,3590.5,4.58401]
[1733242372148,0.46911524,3591.6,3591.0,2.78471]
[1733242372296,0.26055811,3591.5,3590.5,1.79894]
[1733242372640,0.26062201,3591.8,3590.9,2.7848]
[1733242372838,0.76676499,3591.7,3590.9,2.7848]
[1733242373132,0.46900297,3591.6,3590.9,2.7848]
[1733242373339,0.03714001,3591.7,3590.9,2.7848]
[1733242373635,0.29761202,3591.6,3590.6,0.21637493]
[1733242373847,0.20840807,3591.8,3590.9,2.78478]
[1733242374028,0.20840807,3591.8,3590.7,0.3880753]
[1733242374029,0.46890767,3591.7,3590.7,2.78495]
[1733242374200,0.46890242,3591.6,3590.7,0.02784686]
[1733242374402,0.0371089,3591.6,3590.9,2.78481]
[1733242374711,0.20837417,3591.8,3590.9,2.78481]
[1733242374898,0.03707779,3591.5,3590.9,2.78481]
[1733242375103,0.20837417,3591.8,3591.0,2.78471]
[1733242375306,0.03715964,3591.4,3591.0,2.78471]
[1733242375508,3.25277195,3592.0,3591.0,2.78471]
[1733242375741,0.03721688,3591.3,3590.8,2.78486]
[1733242375941,2.78369,3592.4,3590.6,0.21637493]
[1733242375942,0.46875357,3591.8,3590.6,0.21637493]
[1733242376113,0.03717423,3591.2,3590.9,2.78477]
[1733242376320,0.26043129,3592.3,3590.9,2.78477]
[1733242376321,0.26040381,3591.6,3590.9,2.78477]
[1733242376647,0.03726757,3591.5,3590.9,2.78477]
[1733242376947,0.03726757,3591.5,3591.2,2.78454]
[1733242377109,0.46872724,3591.7,3590.7,0.20153149]
[1733242377458,0.29773342,3591.6,3590.9,2.78474]
[1733242377644,0.26040397,3591.5,3590.9,2.78474]
[1733242377849,0.03732945,3591.6,3590.7,2.78494]
[1733242377850,0.26040397,3591.4,3590.7,2.78494]
[1733242378010,0.03726723,3591.4,3590.7,2.78494]
[1733242378205,0.41664417,3591.6,3590.7,2.78494]
[1733242378206,0.26040614,3591.3,3590.7,2.78494]
[1733242378451,0.03721973,3591.2,3590.7,2.78494]
[1733242378962,0.41664417,3592.0,3590.5,1.6354]
[1733242379159,0.03718861,3591.1,3590.2,2.78533]
[1733242379462,0.29763713,3591.0,3590.2,2.78533]
[1733242379772,0.26049049,3590.9,3590.2,2.78533]
[1733242379938,0.03715749,3591.0,3590.0,4.38309]
[1733242380140,0.2604937,3590.9,3590.0,4.38309]
[1733242380437,0.2604937,3590.8,3590.0,1.5976]
[1733242380643,3.25327729,3591.6,3590.0,1.5976]
[1733242380949,1.15291783,3591.8,3589.8,3.21653183]
[1733242380950,0.92286696,3591.5,3590.7,2.7849]
[1733242381133,0.67733415,3591.4,3590.5,2.78506]
[1733242381334,0.41684497,3591.3,3590.3,1.5874]
[1733242381548,0.6773724,3591.2,3590.3,1.5874]
[1733242381761,0.26050988,3591.1,3590.6,2.78497]
[1733242381924,0.62525778,3591.4,3590.6,2.78497]
[1733242382123,0.26052665,3591.3,3590.7,2.78493]
[1733242382365,0.03711624,3591.5,3590.3,1.5874]
[1733242382366,0.26052665,3591.2,3590.3,1.5874]
[1733242382664,0.26052665,3591.1,3590.3,1.78354034]
[1733242382823,0.26053694,3591.0,3590.3,4.56879034]
[1733242383020,2.78468,3591.1,3590.1,2.78537]
[1733242383225,0.26054906,3591.0,3590.1,2.78537]
[1733242383420,0.26054906,3590.9,3590.1,2.78537]
[1733242383664,0.0368467,3590.8,3590.1,2.78536]
[1733242383866,0.0368467,3590.8,3590.0,2.7855]
[1733242384032,0.26056821,3590.7,3589.9,4.39116]
[1733242384368,0.28216467,3590.8,3590.1,2.78543]
[1733242384661,0.2605829,3590.7,3590.2,2.78535]
[1733242384821,0.26057723,3591.2,3589.9,1.6056]
[1733242385020,1.15291783,3591.8,3590.4,2.78518]
[1733242385021,0.8859439,3591.1,3590.4,2.78518]
[1733242385269,0.26057062,3591.0,3590.4,2.78518]
[1733242385450,0.26057062,3590.9,3590.4,2.78518]
[1733242385769,0.26057288,3591.3,3589.9,1.6056]
[1733242385921,0.88595571,3591.2,3590.0,3.26767318]
[1733242386298,0.26057566,3591.1,3590.4,2.78513]
[1733242386499,0.26057566,3591.0,3590.0,3.26767318]
[1733242386804,0.26057566,3590.9,3590.2,2.78535]
[1733242387003,0.26057566,3590.8,3590.3,2.78525]
[1733242387305,0.03508459,3590.7,3590.0,0.48221318]
[1733242387617,0.03508459,3590.7,3589.6,2.78576]
[1733242387762,0.26063153,3590.6,3589.4,2.78595]
[1733242387958,3.04582153,3590.5,3589.4,2.78591]
[1733242388296,3.04585153,3590.4,3589.5,2.78589]
[1733242388505,0.26063153,3590.3,3589.6,2.7858]
[1733242388795,0.03562338,3590.3,3589.6,2.7858]
[1733242388971,2.82091338,3590.3,3589.1,1.5102]
[1733242389170,2.78529,3590.3,3589.2,0.75130118]
[1733242389369,0.29591962,3590.2,3589.2,2.78613]
[1733242389594,0.03534409,3590.2,3589.2,2.78613]
[1733242390482,0.26052845,3590.1,3589.2,2.78613]
[1733242390702,0.26052805,3590.0,3589.1,1.5102]
[1733242390859,0.26052805,3589.9,3589.1,1.5102]
[1733242391194,0.03522072,3590.0,3589.1,1.939864]
[1733242391395,0.03502222,3589.8,3589.1,1.939864]
[1733242391698,0.03497767,3589.7,3589.1,1.939864]
[1733242391853,0.03497767,3589.7,3589.1,4.726054]
[1733242392056,2.78509,3590.6,3587.7,2.78723]
[1733242392057,2.78512,3590.5,3588.7,1.5114]
[1733242392364,2.78512,3590.5,3588.2,3.21653183]
[1733242392365,2.78536,3590.2,3588.6,2.78653]
[1733242392560,2.78583,3589.6,3588.6,2.78653]
[1733242392868,0.29513812,3589.5,3588.4,1.5114]
[1733242393203,0.03473152,3589.5,3588.6,2.78653]
[1733242393408,0.26029997,3589.7,3588.6,2.78653]
[1733242393569,0.03459209,3589.4,3588.6,2.78653]
[1733242393788,0.33922163,3589.6,3588.5,2.78667]
[1733242393988,0.33922163,3589.6,3588.4,1.5114]
[1733242393989,0.03448133,3589.3,3588.7,2.7865]
[1733242394314,0.03446242,3589.2,3588.4,1.5114]
[1733242394495,0.03446242,3589.2,3588.6,2.78659]
[1733242394702,0.304604,3589.6,3588.6,2.78659]
[1733242395010,0.03441903,3589.1,3588.7,2.7865]
[1733242395213,0.03441903,3589.1,3588.4,1.5114]
[1733242395214,2.78582,3589.7,3588.6,2.78659]
[1733242395376,0.260143,3589.6,3588.6,2.78659]
[1733242395575,0.260143,3589.5,3588.6,2.78659]
[1733242395813,0.03431264,3589.6,3588.7,2.78647]
[1733242396022,0.26014314,3589.5,3588.7,2.78647]
[1733242396222,0.3163259,3589.6,3588.7,2.78647]
[1733242396406,0.26007606,3589.5,3588.7,2.78647]
[1733242396576,0.3163259,3589.6,3588.7,2.78647]
[1733242396783,0.26007585,3589.5,3588.7,2.78647]
[1733242397118,0.3163259,3589.6,3588.8,2.78642]
[1733242397301,0.3163259,3589.6,3588.5,0.02786202]
[1733242397621,0.3163259,3589.6,3588.8,2.78643]
[1733242397823,0.03431264,3589.6,3588.5,2.78666]
[1733242397972,0.26001097,3589.5,3588.5,2.78666]
[1733242398177,3.04595527,3589.4,3588.3,2.78678]
[1733242398416,3.63254218,3590.0,3587.9,4.39553]
[1733242398417,0.41601035,3589.9,3587.9,1.97960852]
[1733242398585,0.03424825,3589.3,3587.9,1.97960852]
[1733242398790,0.28202282,3589.3,3588.4,2.78672]
[1733242399117,0.03429566,3589.2,3588.3,2.78676]
[1733242399526,0.03429566,3589.2,3588.0,0.19796085]
[1733242399527,0.03429566,3589.2,3588.4,2.78674]
[1733242400122,0.03411413,3589.1,3588.4,2.78668]
[1733242400292,2.78614,3589.2,3588.1,2.78699]
[1733242400630,3.21653183,3589.6,3587.4,5.30060353]
[1733242400631,0.03409007,3589.0,3587.6,0.37347207]
[1733242400927,0.03409007,3589.0,3587.9,2.78706]
[1733242401080,0.03409007,3589.0,3587.4,2.45570183]
[1733242401282,0.03409007,3589.0,3587.4,4.4358]
[1733242401283,2.78636,3588.9,3587.4,4.4358]
[1733242401482,2.7867,3588.5,3587.4,2.7875]
[1733242401724,0.03409007,3589.0,3587.2,0.36864619]
[1733242401725,0.27867,3588.4,3587.6,2.78734]
[1733242401884,0.31263871,3588.4,3587.6,2.78734]
[1733242402290,0.03396871,3588.4,3587.4,2.78751]
[1733242402603,2.78668,3588.5,3587.4,2.78751]
[1733242402811,0.03255616,3588.3,3587.4,2.78751]
[1733242402987,0.03258732,3588.4,3587.4,2.78751]
[1733242403320,0.03228123,3588.3,3587.1,1.5745]
[1733242403531,0.25957174,3588.8,3587.4,2.78749]
[1733242403699,0.03239904,3588.2,3587.4,2.78749]
[1733242403894,2.78674,3588.5,3587.4,2.78749]
[1733242404096,2.78678,3588.4,3587.4,2.78749]
[1733242404483,0.0324302,3588.3,3587.4,2.78749]
[1733242404711,0.28192102,3588.2,3587.4,2.78749]
[1733242405221,0.03236946,3588.1,3587.4,2.78749]
[1733242405442,2.81935946,3588.1,3586.8,1.6602]
[1733242405590,0.03236946,3588.1,3586.8,1.6602]
[1733242405790,2.81935946,3588.1,3587.0,2.78777]
[1733242405988,2.81935946,3588.1,3586.8,1.6602]
[1733242405989,0.31012805,3588.0,3586.8,1.6602]
[1733242406237,0.03236946,3588.1,3586.8,1.6602]
[1733242406535,0.03236946,3588.1,3586.2,3.21653183]
[1733242406536,2.78722,3587.8,3586.7,2.78801]
[1733242406688,3.21653183,3588.4,3586.5,1.89816224]
[1733242406889,0.03203941,3587.7,3586.7,2.78803]
[1733242407135,2.78724,3587.8,3586.7,2.78803]
[1733242407431,0.03190077,3587.6,3586.7,2.78803]
[1733242407640,0.31065594,3587.7,3586.7,2.78803]
[1733242407793,0.03185785,3587.5,3586.2,1.90703936]
[1733242407993,0.03186448,3587.6,3586.3,2.78838]
[1733242408190,0.03181438,3587.4,3586.6,2.78809]
[1733242408494,0.03181438,3587.4,3586.2,1.90703936]
[1733242408495,0.03173419,3587.3,3586.4,2.7883]
[1733242408691,2.78744,3587.6,3586.6,2.78812]
[1733242408890,0.03158637,3587.2,3586.6,2.78812]
[1733242409133,0.03158637,3587.2,3586.2,1.5345]
[1733242409339,3.066054,3587.7,3586.5,2.78818]
[1733242409627,0.03171022,3587.1,3586.5,2.78818]
[1733242409785,0.3066054,3587.6,3586.2,4.32293]
[1733242409786,0.3066054,3587.6,3586.2,1.5345]
[1733242409991,0.0316496,3587.0,3586.5,2.78823]
[1733242410188,3.066024,3587.7,3586.6,2.78814]
[1733242410433,0.03159916,3586.9,3586.7,2.78806]
[1733242410738,0.278724,3587.7,3586.2,4.75103183]
[1733242410893,2.78713,3588.0,3586.2,4.75103183]
[1733242411218,2.78693,3588.2,3586.8,2.788]
[1733242411530,0.41445484,3588.3,3587.2,2.78768]
[1733242411531,0.29087728,3588.1,3587.2,2.78768]
[1733242411836,0.03186057,3588.1,3587.0,2.78782]
[1733242412036,2.81887057,3588.1,3587.0,2.78777]
[1733242412190,3.75743144,3588.0,3586.2,1.5345]
[1733242412392,3.75743144,3588.0,3586.4,2.78828]
[1733242412393,0.25901255,3587.9,3586.4,2.78828]
[1733242412619,2.78743,3587.6,3586.4,2.78828]
[1733242412800,3.09211426,3587.5,3586.4,2.78828]
[1733242413005,2.78753,3587.4,3586.4,2.78828]
[1733242413293,0.33637897,3587.5,3586.4,2.78824]
[1733242413526,0.03173363,3587.3,3586.5,2.78819]
[1733242413725,0.03174959,3587.4,3586.5,2.78819]
[1733242413994,0.03168724,3587.2,3586.7,2.78801]
[1733242414540,0.03168724,3587.2,3585.9,1.91991963]
[1733242414541,2.78727,3587.8,3586.8,2.78799]
[1733242414744,0.25904048,3587.7,3586.8,2.78799]
[1733242414909,3.20176634,3587.8,3586.8,2.78799]
[1733242414910,0.25904048,3587.6,3586.8,2.78799]
[1733242415231,0.25904048,3587.5,3586.6,2.78808]
[1733242415428,0.25904048,3587.4,3586.6,2.78808]
[1733242415593,0.34608468,3587.5,3586.6,2.78808]
[1733242415788,0.25907731,3587.4,3586.6,2.78808]
[1733242416040,3.49841889,3588.0,3586.0,2.78854]
[1733242416041,2.78741,3587.6,3586.5,2.78822]
[1733242416346,3.46123876,3587.5,3586.5,2.78822]
[1733242416500,0.34612388,3587.4,3586.5,2.78822]
[1733242416702,0.25914312,3587.3,3586.5,2.78822]
[1733242416926,0.03049566,3587.5,3586.9,2.78785]
[1733242417238,0.25913108,3587.4,3586.1,1.5904]
[1733242417446,0.41476999,3587.9,3586.1,1.5904]
[1733242417601,0.17440744,3588.2,3586.2,3.43335954]
[1733242417602,0.67400259,3587.8,3586.2,3.43335954]
[1733242417797,0.4147613,3588.1,3587.2,2.78764]
[1733242417997,2.78684,3588.3,3587.2,2.78767]
[1733242417998,0.25921024,3588.0,3587.2,2.78767]
[1733242418199,0.25921024,3587.9,3587.2,2.78767]
[1733242418409,2.78684,3588.3,3586.6,3.21653183]
[1733242418410,0.25929027,3587.8,3586.6,3.21653183]
[1733242418637,0.41486376,3588.2,3587.2,2.78763]
[1733242418842,0.67415786,3588.1,3587.2,2.78763]
[1733242419007,0.25928864,3588.0,3586.7,0.47377318]
[1733242419200,0.25928975,3587.9,3587.4,2.78752]
[1733242419509,0.4148636,3588.3,3587.4,2.78752]
[1733242419713,0.99440068,3588.2,3587.4,2.78752]
[1733242420073,0.67437432,3588.1,3587.2,2.78767]
[1733242420199,0.67437432,3588.0,3587.4,2.78751]
[1733242420396,0.25937272,3587.9,3587.2,1.60167457]
[1733242420711,0.25947543,3587.8,3587.4,2.78752]
[1733242420911,0.02971037,3587.8,3587.4,2.78752]
[1733242421114,0.02971037,3587.8,3587.1,1.5738]
[1733242421115,0.43214959,3588.8,3587.7,2.78723]
[1733242421314,0.43214959,3588.8,3587.1,1.5738]
[1733242421315,0.0296792,3587.7,3587.2,0.02787333]
[1733242421616,0.43214959,3588.8,3587.2,0.02787333]
[1733242421617,0.41527221,3588.6,3587.3,0.50826634]
[1733242421799,0.67481557,3588.5,3587.3,2.78761]
[1733242421999,0.67481557,3588.5,3587.8,2.7872]
[1733242422000,0.67481557,3588.4,3587.8,2.7872]
[1733242422201,0.67481557,3588.3,3588.0,2.78706]
[1733242422401,0.25954336,3588.2,3587.4,6.00398183]
[1733242422698,0.20770726,3589.0,3587.1,1.5738]
[1733242422898,2.78666,3588.6,3587.5,2.78738]
[1733242423103,2.78682,3588.4,3587.3,2.78758]
[1733242423326,0.67524492,3588.3,3587.1,2.78773]
[1733242423533,2.78703,3588.1,3587.1,2.78773]
[1733242423832,3.3959434,3588.0,3586.9,2.7879]
[1733242424035,0.25965965,3587.9,3586.9,2.7879]
[1733242424240,0.25965965,3587.8,3586.9,2.7879]
[1733242424536,0.25965965,3587.7,3586.9,2.7879]
[1733242424741,0.25987057,3587.6,3586.9,2.7879]
[1733242424953,0.33747302,3587.6,3586.7,2.78805]
[1733242425272,0.25987439,3587.5,3586.7,2.78805]
[1733242425473,0.25987439,3587.4,3586.2,1.574]
[1733242425676,0.25987439,3587.3,3586.6,2.78812]
[1733242425991,0.02962428,3587.2,3586.2,1.574]
[1733242426284,0.26009217,3587.1,3586.4,2.7883]
[1733242426440,2.78754,3587.4,3586.4,2.7883]
[1733242426783,0.53884855,3587.3,3586.2,1.574]
[1733242426938,0.26009455,3587.2,3586.2,2.7884]
[1733242427139,0.26009455,3587.1,3585.7,2.943654]
[1733242427387,2.78792,3586.9,3585.8,2.78875]
[1733242427642,0.278754,3587.3,3585.7,0.154874]
[1733242427643,0.02952698,3587.0,3585.7,0.154874]
[1733242427785,0.02947686,3586.8,3585.9,2.78863]
[1733242427990,0.02947686,3586.8,3585.7,0.154874]
[1733242427991,0.28173369,3586.8,3585.7,0.154874]
[1733242428162,0.26035175,3586.7,3585.8,2.78875]
[1733242428492,0.26036875,3586.6,3585.7,2.943714]
[1733242428804,0.28885235,3586.5,3585.7,0.154874]
[1733242429163,0.67698951,3586.4,3585.7,0.154874]
[1733242429410,0.02839009,3586.4,3585.7,0.154874]
[1733242429555,0.26043753,3586.3,3585.7,0.154874]
[1733242429895,0.26043753,3586.2,3585.7,0.154874]
[1733242430048,0.26043753,3586.1,3585.7,0.154874]
[1733242430254,0.26043753,3586.0,3585.7,0.154874]
[1733242430482,0.26043753,3585.9,3585.7,0.154874]
[1733242430797,2.78824,3586.5,3585.7,0.154874]
[1733242430973,0.02813289,3585.8,3585.7,0.154874]
[1733242431181,0.29966286,3586.5,3585.7,0.154874]
[1733242431410,0.02812521,3585.8,3585.7,0.154874]
[1733242431583,0.41671926,3586.3,3585.7,0.154874]
[1733242431761,0.02812521,3585.8,3585.7,0.154874]
[1733242431968,3.22614612,3586.6,3585.7,0.154874]
[1733242432191,0.02812521,3585.8,3585.7,0.154874]
[1733242432404,0.26045052,3585.8,3585.7,0.154874]
[1733242432581,0.28857573,3585.8,3585.7,0.154874]
[1733242433605,0.26045052,3585.8,3585.7,0.154874]
[1733242434215,0.62470338,3586.4,3585.7,0.154874]
[1733242434369,0.88492994,3586.3,3585.7,0.154874]
[1733242434710,0.88494444,3586.2,3585.7,0.154874]
[1733242435011,0.70456449,3586.1,3585.7,0.154874]
[1733242435193,0.67672087,3586.0,3585.7,0.154874]